[Event "56th Rubinstein Memorial D 2020"]
[Site "Polanica Zdroj"]
[Date "2020.08.16"]
[Round "2.5"]
[White "Lewandrowski, Tomasz"]
[Black "Kaczanowski, Pawel"]
[Result "1-0"]
[ECO "B33"]
[WhiteElo "1879"]
[BlackElo "1655"]
[Annotator "NA"]
[PlyCount "94"]
[EventDate "2020.08.15"]
[EventType "swiss"]
[EventCountry "POL"]
[SourceTitle "playchess.com"]
[Source "ChessBase"]
[SourceQuality "1"]
[TimeControl "40/5400+30:1800+30"]

{[%evp 8,90,17,32767,32767,27,32767,37,12,32767,47,32767,32767,32767,32767,40,26,28,32,0,7,-37,-14,-104,-83,-147,-169,-138,-174,-175,32767,-95,-145,32767,-156,-172,-189,-252,-225,-251,-248,-306,-285,-290,-324,32767,-227,-280,-232,32767,-249,-286,-316,32767,32767,32767,32767,32767,32767,32767,32767,32767,32767,32767,32767,32767,32767,32767,32767,32767,32767,32767,32767,32767,32767,32767,0,-319,32767,32767,32767,-378,32767,-315,-67]} 1. e4 {[%emt 0:00:00]} c5 {[%emt 0:00:00]} 2. Nf3 {[%emt 0:00:00]} Nc6 {[%emt 0:00:00]} 3. d4 {[%emt 0:00:26]} cxd4 {[%emt 0:00:00]} 4. Nxd4 {[%emt 0:00:07]} Nf6 {[%emt 0:00:05]} 5. Nc3 {[%emt 0:06:15]} e5 {[%emt 0:00:19]} 6. Ndb5 {[%emt 0:01:55]} d6 {[%emt 0:00:24]} 7. Bg5 {[%emt 0:01:58]} a6 {[%emt 0:00:14]} 8. Bxf6 {[%emt 0:00:17]} gxf6 {[%emt 0:00:21]} 9. Na3 {[%emt 0:00:10]} b5 {[%emt 0:01:23]} 10. Nd5 {[%emt 0:00:09]} f5 {[%emt 0:06:06]} 11. exf5 {[%emt 0:05:38]} Bxf5 {[%emt 0:00:40]} 12. c3 {[%emt 0:00:19]} Bg7 {[%emt 0:01:52]} 13. Qf3 {[%emt 0:06:11]} Be6 {[%emt 0:04:56]} 14. Bd3 {[%emt 0:08:31]} O-O {[%emt 0:03:01] B33: Sicilian: Pelikan and Sveshnikov Variations.} 15. g4 {[%emt 0:03:57] [#]} (15. Bc2 $11 {keeps the balance.}) 15... b4 $1 {[%emt 0:25:14]} 16. Nc2 {[%emt 0:00:59] [#]} bxc3 $1 {[%emt 0:06:59]} 17. bxc3 {[%emt 0:00:09] [#]} Bxd5 $1 {[%emt 0:17:37]} 18. Qxd5 {[%emt 0:00:19] [#]} e4 $146 {[%emt 0:00:18]} ({Predecessor:} 18... Ne7 19. Qe4 f5 20. gxf5 d5 21. Qg4 e4 22. Rg1 Nxf5 23. Ne3 Kh8 24. Rc1 Qd7 {0-1 (34) Gonzalez Bolivar,R (2252)-Barbosa,E (2165) Santos 2008}) 19. Bxe4 {[%emt 0:01:50]} Bxc3+ {[%emt 0:01:21] Double Attack} 20. Kf1 {[%emt 0:02:24]} Bxa1 {[%emt 0:25:21]} 21. Nxa1 {[%emt 0:00:01]} Qf6 {[%emt 0:00:27]} 22. Kg2 {[%emt 0:01:31]} (22. Qh5 {is a better defense.} h6 23. Bxc6) 22... Ne5 {[%emt 0:00:25]} 23. Bf5 {[%emt 0:00:53]} Rab8 {[%emt 0:00:17]} 24. Nb3 {[%emt 0:00:26]} Ng6 {[%emt 0:02:15]} 25. Bxg6 {[%emt 0:03:20]} hxg6 {[%emt 0:00:16]} ({But not} 25... Qxg6 26. h3 $19) 26. Rd1 {[%emt 0:01:10]} Rfd8 {[%emt 0:00:25]} 27. Rd3 {[%emt 0:04:07]} Qe5 {[%emt 0:00:48]} 28. Qf3 {[%emt 0:01:39]} Rb4 {[%emt 0:01:04]} 29. Re3 {[%emt 0:01:05]} Qf4 {[%emt 0:00:26]} 30. Qxf4 {[%emt 0:02:57]} Rxf4 {[%emt 0:00:05]} 31. Kg3 {[%emt 0:00:06]} Ra4 {[%emt 0:00:03]} 32. Re2 {[%emt 0:00:16]} Kg7 {[%emt 0:00:26]} 33. g5 {[%emt 0:00:39]} Rc4 {[%emt 0:00:46]} 34. Rd2 {[%emt 0:00:40]} f5 {[%emt 0:01:25]} 35. Nd4 {[%emt 0:01:30]} Kf7 {[%emt 0:00:22]} 36. h4 {[%emt 0:00:22]} Re8 {[%emt 0:01:11]} 37. h5 {[%emt 0:00:23]} Re4 {[%emt 0:00:34]} 38. hxg6+ {[%emt 0:00:13]} Kxg6 {[%emt 0:00:05]} 39. Nf3 {[%emt 0:00:11]} Rc6 {[%emt 0:01:23]} 40. Kg2 $1 $11 {[%emt 0:04:03]} Rg4+ {[%emt 0:00:15]} 41. Kf1 {[%emt 0:30:07]} (41. Kh2) 41... Re4 $2 {[%emt 0:30:38]} (41... Rc1+ $19 42. Ke2 Re4+ 43. Kd3 Rc5) 42. Rd5 $2 {[%emt 0:00:29]} Rc1+ {[%emt 0:00:17]} 43. Kg2 {[%emt 0:00:04]} Rg4+ {[%emt 0:00:52]} 44. Kh2 Rc2 {[%emt 0:00:30]} 45. Rxd6+ {[%emt 0:00:56]} Kg7 $15 {[%emt 0:00:05]} (45... Kh7 $19 46. Rd7+ Kg8) 46. Nd4 {[%emt 0:04:44]} Rxf2+ {[%emt 0:00:32]} 47. Kh3 {[%emt 0:00:00]} Rgg2 1-0

[Event "56th Rubinstein Memorial D 2020"]
[Site "Polanica Zdroj"]
[Date "2020.08.16"]
[Round "2.6"]
[White "Wilgosz, Jan"]
[Black "Simon, Marek"]
[Result "0-1"]
[ECO "B13"]
[WhiteElo "1617"]
[BlackElo "1878"]
[Annotator "NA"]
[PlyCount "70"]
[EventDate "2020.08.15"]
[EventType "swiss"]
[EventCountry "POL"]
[SourceTitle "playchess.com"]
[Source "ChessBase"]
[SourceQuality "1"]
[TimeControl "40/5400+30:1800+30"]

1. e4 {[%emt 0:00:00]} c6 {[%emt 0:00:39]} 2. d4 {[%emt 0:00:00]} d5 {[%emt 0:00:04]} 3. exd5 {[%emt 0:00:19]} cxd5 {[%emt 0:00:04]} 4. c4 {[%emt 0:00:19]} Nf6 {[%emt 0:00:17]} 5. Nc3 {[%emt 0:00:27]} Nc6 {[%emt 0:00:38]} 6. Nf3 {[%emt 0:00:19]} Bg4 {[%emt 0:00:27]} 7. Be2 {[%emt 0:00:21]} e6 {[%emt 0:01:18]} 8. c5 {[%emt 0:00:32]} Be7 {[%emt 0:01:54] B13: Caro-Kann: Exchange Variation and Panov-Botvinnik Attack.} 9. Bf4 {[%emt 0:01:21]} O-O {[%emt 0:00:33] [#]} 10. Ne5 $146 {[%emt 0:02:37]} ({Predecessor:} 10. h3 Bxf3 11. gxf3 Nh5 12. Bh2 f5 13. Qd2 g6 14. O-O-O Bf6 15. Qe3 Re8 16. Rhg1 {0-1 (50) Johnson,G (1899)-Cupid,K (2147) Port of Spain 2017}) 10... Bxe2 {[%emt 0:08:26]} 11. Nxc6 {[%emt 0:04:50]} Bxd1 {[%emt 0:03:15]} 12. Nxd8 {[%emt 0:00:20]} Rfxd8 {[%emt 0:02:09]} 13. Rxd1 {[%emt 0:03:19]} Ne4 {[%emt 0:11:37]} 14. Ne2 {[%emt 0:13:23]} b6 {[%emt 0:13:01]} 15. f3 {[%emt 0:10:41]} Nf6 {[%emt 0:00:41]} 16. b4 {[%emt 0:02:46]} Rdc8 {[%emt 0:14:45]} 17. O-O {[%emt 0:06:15]} Nd7 {[%emt 0:04:09]} 18. Nc3 {[%emt 0:07:58]} a5 {[%emt 0:14:39]} 19. a3 {[%emt 0:06:19]} bxc5 {[%emt 0:08:57]} 20. bxc5 {[%emt 0:10:34]} Nxc5 {[%emt 0:00:26]} 21. dxc5 {[%emt 0:01:50]} Bxc5+ {[%emt 0:00:01]} 22. Kh1 {[%emt 0:00:53]} Bxa3 {[%emt 0:00:24]} 23. Nxd5 {[%emt 0:05:44]} exd5 {[%emt 0:00:38]} 24. Rxd5 {[%emt 0:00:28]} Bb2 {[%emt 0:06:47]} 25. Rb1 {[%emt 0:04:41]} Bf6 {[%emt 0:00:46]} 26. Rd2 {[%emt 0:06:09]} g5 {[%emt 0:04:32]} 27. Bg3 $19 {[%emt 0:01:33]} a4 {[%emt 0:00:24]} 28. Ra2 {[%emt 0:00:30]} a3 {[%emt 0:01:03]} 29. Bd6 {[%emt 0:01:38]} Ra6 {[%emt 0:01:17]} 30. Bg3 {[%emt 0:02:54]} Bb2 {[%emt 0:00:20]} 31. h3 {[%emt 0:00:39]} Rac6 {[%emt 0:00:24]} 32. Kh2 {[%emt 0:00:53]} Rc1 {[%emt 0:00:23]} 33. Rxc1 {[%emt 0:01:21]} Rxc1 {[%emt 0:00:03]} 34. Bd6 {[%emt 0:00:32]} Rc2 {[%emt 0:01:00]} 35. h4 {[%emt 0:02:47]} Be5+ {[%emt 0:00:08]} 0-1

[Event "56th Rubinstein Memorial D 2020"]
[Site "Polanica Zdroj"]
[Date "2020.08.16"]
[Round "2.7"]
[White "Pyka, Roman"]
[Black "Ursnik, Patryk"]
[Result "0-1"]
[ECO "D31"]
[WhiteElo "1873"]
[BlackElo "1601"]
[Annotator "NA"]
[PlyCount "132"]
[EventDate "2020.08.15"]
[EventType "swiss"]
[EventCountry "POL"]
[SourceTitle "playchess.com"]
[Source "ChessBase"]
[SourceQuality "1"]
[TimeControl "40/5400+30:1800+30"]

1. Nf3 {[%emt 0:00:00]} d5 {[%emt 0:08:35]} 2. d4 {[%emt 0:00:00]} c6 {[%emt 0:00:07]} 3. c4 {[%emt 0:00:00]} e6 {[%emt 0:00:20]} 4. Nc3 {[%emt 0:00:00]} dxc4 {[%emt 0:00:13]} 5. a4 {[%emt 0:00:05]} Bb4 {[%emt 0:00:32]} 6. Ne5 {[%emt 0:01:44]} Nf6 {[%emt 0:07:31] D31: Queen's Gambit Declined: Semi-Slav without ...Nf6 (+ Marshall Gambit and Noteboom) and Exchange Variation lines without ...Nf6.} 7. e3 {[%emt 0:05:12] [#]} Nbd7 $146 {[%emt 0:07:54]} ({Predecessor:} 7... O-O 8. Bd2 Nbd7 9. Nxc4 Qe7 10. Qc2 e5 11. O-O-O a5 12. dxe5 Nxe5 13. Nb6 Rb8 14. Nxc8 Rfxc8 {1-0 (42) Reolon,V (1678)-Durante,A (2006) Montevideo 2018}) 8. Nxd7 {[%emt 0:01:45]} Bxd7 {[%emt 0:00:13]} 9. Bxc4 {[%emt 0:00:09]} Qa5 {[%emt 0:00:26]} 10. Bd2 {[%emt 0:01:43]} Nd5 {[%emt 0:01:20]} 11. Qc2 {[%emt 0:05:14]} Nb6 {[%emt 0:06:53]} 12. Bb3 {[%emt 0:00:37]} c5 $1 {[%emt 0:00:48]} 13. dxc5 {[%emt 0:00:27]} Qxc5 {[%emt 0:00:17]} 14. O-O {[%emt 0:14:31]} O-O {[%emt 0:02:28]} 15. Ne4 {[%emt 0:07:04]} Qxc2 {[%emt 0:04:39]} 16. Bxc2 {[%emt 0:00:09]} Be7 {[%emt 0:01:15]} 17. Bc3 {[%emt 0:05:05]} Nd5 {[%emt 0:06:07]} 18. Bd4 {[%emt 0:02:02]} Rfc8 {[%emt 0:02:33]} 19. Bb3 {[%emt 0:00:22]} Bc6 {[%emt 0:01:01]} 20. Ng3 {[%emt 0:10:04]} Nf6 {[%emt 0:05:01]} 21. Rfc1 {[%emt 0:00:56]} a6 {[%emt 0:06:48]} 22. f3 {[%emt 0:02:24]} Nd5 {[%emt 0:05:31]} 23. Kf2 {[%emt 0:01:56]} g6 {[%emt 0:02:50]} 24. Ke2 {[%emt 0:02:48]} b5 {[%emt 0:03:08]} 25. Rxc6 {[%emt 0:04:38]} Rxc6 {[%emt 0:00:50]} 26. axb5 {[%emt 0:00:13]} Rc7 {[%emt 0:01:49]} 27. bxa6 {[%emt 0:06:25]} Nb4 {[%emt 0:00:59]} 28. Ne4 {[%emt 0:07:06]} Rxa6 {[%emt 0:00:40]} 29. Rxa6 {[%emt 0:01:15]} Nxa6 {[%emt 0:00:04]} 30. Nf6+ {[%emt 0:00:17]} Bxf6 $1 {[%emt 0:00:32]} 31. Bxf6 {[%emt 0:00:07]} Nc5 {[%emt 0:00:57]} 32. Bc2 {[%emt 0:00:21]} Nd7 {[%emt 0:01:05]} 33. Bc3 {[%emt 0:00:06]} Kf8 {[%emt 0:00:34]} 34. h4 {[%emt 0:01:01]} Nb6 {[%emt 0:03:07]} 35. Bb3 {[%emt 0:00:11]} Nd5 {[%emt 0:00:44]} 36. Bxd5 {[%emt 0:00:10]} exd5 {[%emt 0:00:04]} 37. Kd3 {[%emt 0:00:38]} Ke7 {[%emt 0:00:09]} 38. e4 {[%emt 0:02:04]} Ke6 {[%emt 0:00:29]} 39. e5 $2 {[%emt 0:00:33]} (39. exd5+ $17 {might work better.} Kxd5 40. g3) 39... Kd7 {[%emt 0:05:42]} 40. g3 {[%emt 0:01:13]} Ra7 {[%emt 0:00:15]} 41. b4 {[%emt 0:32:35]} Kc6 {[%emt 0:31:05]} 42. Kd4 {[%emt 0:00:42]} Ra2 {[%emt 0:00:53]} 43. b5+ {[%emt 0:00:15]} Kxb5 {[%emt 0:00:03]} 44. Kxd5 {[%emt 0:00:07]} Rg2 $19 {[%emt 0:00:14]} 45. g4 {[%emt 0:00:14]} Rf2 {[%emt 0:01:57]} 46. Ke4 {[%emt 0:00:35]} Kc4 {[%emt 0:00:11]} 47. Ba5 {[%emt 0:00:14]} Re2+ {[%emt 0:00:56]} 48. Kf4 {[%emt 0:00:12]} Kd5 {[%emt 0:01:16]} 49. Bc7 {[%emt 0:00:56]} Rc2 {[%emt 0:01:03]} 50. Bb8 {[%emt 0:04:36]} Rc8 {[%emt 0:00:07]} 51. Ba7 {[%emt 0:00:49]} Rc4+ {[%emt 0:00:31]} 52. Kg5 {[%emt 0:00:14]} Kxe5 {[%emt 0:00:39]} 53. f4+ {[%emt 0:00:05]} Ke4 {[%emt 0:00:54]} 54. Bb8 {[%emt 0:00:36]} Kf3 {[%emt 0:01:18]} 55. h5 {[%emt 0:00:54]} gxh5 {[%emt 0:02:42]} 56. gxh5 {[%emt 0:00:57]} Rc6 {[%emt 0:00:09]} 57. Kf5 {[%emt 0:01:01]} Kg3 {[%emt 0:01:27]} 58. Kg5 {[%emt 0:00:38]} h6+ {[%emt 0:00:20]} 59. Kf5 {[%emt 0:00:07]} Kh4 {[%emt 0:00:11]} 60. Be5 {[%emt 0:00:32]} Kxh5 {[%emt 0:00:15]} 61. Bf6 {[%emt 0:00:16]} Rxf6+ {[%emt 0:01:46]} 62. Kxf6 {[%emt 0:00:28]} Kg4 {[%emt 0:00:08]} 63. f5 {[%emt 0:00:05]} h5 {[%emt 0:00:15]} 64. Ke5 {[%emt 0:00:06]} h4 {[%emt 0:00:12]} 65. f6 {[%emt 0:00:05]} h3 {[%emt 0:00:07]} 66. Kd6 {[%emt 0:00:04]} Kg5 {[%emt 0:00:10]} 0-1

[Event "56th Rubinstein Memorial D 2020"]
[Site "Polanica Zdroj"]
[Date "2020.08.16"]
[Round "2.8"]
[White "Goral, Jan"]
[Black "Janicki, Rafal"]
[Result "1/2-1/2"]
[ECO "E09"]
[WhiteElo "1580"]
[BlackElo "1851"]
[Annotator "NA"]
[PlyCount "144"]
[EventDate "2020.08.15"]
[EventType "swiss"]
[EventCountry "POL"]
[SourceTitle "playchess.com"]
[Source "ChessBase"]
[SourceQuality "1"]
[TimeControl "40/5400+30:1800+30"]

1. d4 {[%emt 0:00:00]} d5 {[%emt 0:00:25]} 2. Nf3 {[%emt 0:00:24]} Nf6 {[%emt 0:00:10]} 3. c4 {[%emt 0:01:25]} e6 {[%emt 0:00:14]} 4. g3 {[%emt 0:00:44]} c6 {[%emt 0:00:08]} 5. Bg2 {[%emt 0:01:26]} Be7 {[%emt 0:00:21]} 6. O-O {[%emt 0:00:51]} O-O {[%emt 0:00:19]} 7. Qc2 {[%emt 0:01:35]} Nbd7 {[%emt 0:02:06]} 8. Nbd2 {[%emt 0:02:48]} Re8 {[%emt 0:02:27]} 9. e4 {[%emt 0:03:10]} dxe4 {[%emt 0:01:56]} 10. Nxe4 {[%emt 0:00:47]} Nxe4 {[%emt 0:02:52]} 11. Qxe4 {[%emt 0:00:12]} Nf6 {[%emt 0:01:15]} 12. Qc2 {[%emt 0:01:39]} c5 {[%emt 0:13:36] E09: Closed Catalan: Main Line: 7 Qc2 c6 8 Nbd2.} 13. Rd1 {[%emt 0:06:10]} cxd4 {[%emt 0:01:31]} 14. Nxd4 {[%emt 0:02:26]} Qb6 {[%emt 0:04:45]} 15. h3 {[%emt 0:06:00]} Bd7 {[%emt 0:04:53] [#]} 16. Rb1 $146 {[%emt 0:07:53]} ({Predecessor:} 16. a3 Rad8 17. Be3 Qc7 18. Rac1 b6 19. Qe2 a5 20. Nb5 Qb8 21. Bf4 Qc8 22. Bc7 Bxb5 23. Bxd8 {1-0 (33) Schroer,M (2127)-Von Saldern,R (2040) Guernsey 2009}) 16... Bc5 {[%emt 0:03:08]} 17. Be3 {[%emt 0:03:23]} e5 {[%emt 0:05:47]} 18. Nf5 {[%emt 0:06:39]} Bxf5 $1 {[%emt 0:00:11]} 19. Qxf5 {[%emt 0:00:14]} Bxe3 {[%emt 0:00:09]} 20. fxe3 {[%emt 0:00:09]} Qxe3+ {[%emt 0:00:12]} 21. Qf2 {[%emt 0:00:44]} Qxf2+ {[%emt 0:03:01]} 22. Kxf2 {[%emt 0:00:09]} Rac8 {[%emt 0:03:40]} 23. b3 {[%emt 0:01:19]} b6 {[%emt 0:01:07]} 24. Rd6 {[%emt 0:02:25]} Kf8 {[%emt 0:05:04]} 25. Rbd1 {[%emt 0:01:56]} Ke7 {[%emt 0:00:32]} 26. g4 {[%emt 0:00:42]} h6 {[%emt 0:00:47]} 27. Ke3 {[%emt 0:01:11]} Red8 {[%emt 0:01:00]} 28. Rxd8 {[%emt 0:01:37]} Rxd8 {[%emt 0:00:05]} 29. Rxd8 {[%emt 0:00:27]} Kxd8 {[%emt 0:00:05]} 30. b4 {[%emt 0:00:27]} Kc7 {[%emt 0:03:03]} 31. Bf3 {[%emt 0:01:36]} Kd6 {[%emt 0:00:36]} 32. Bb7 {[%emt 0:01:42]} g6 {[%emt 0:01:39]} 33. Bf3 {[%emt 0:01:22]} Ne8 {[%emt 0:01:04]} 34. Bd5 {[%emt 0:01:10]} f5 {[%emt 0:01:05]} (34... Ke7 $17 35. Ke4 f6) 35. Bf7 {[%emt 0:01:12] Double Attack} Nf6 {[%emt 0:00:15]} 36. Bxg6 {[%emt 0:00:30]} fxg4 {[%emt 0:00:23]} 37. hxg4 {[%emt 0:00:18]} Nxg4+ {[%emt 0:00:11]} 38. Kf3 {[%emt 0:00:40]} (38. Ke4 $15) 38... Nf6 {[%emt 0:00:14]} 39. Bf5 {[%emt 0:02:38] [#]} Ng8 $1 {[%emt 0:00:45]} 40. Ke3 {[%emt 0:01:12]} Ne7 {[%emt 0:03:25]} 41. Be4 {[%emt 0:30:45]} Ng8 $2 {[%emt 0:36:57]} 42. Bf5 {[%emt 0:01:34] [#]} Nf6 $11 {[%emt 0:00:14]} ({Better is} 42... h5 $1 $17 43. Bg6 h4) 43. Kf3 {[%emt 0:00:58]} Nh5 {[%emt 0:00:30]} 44. Be4 {[%emt 0:01:01]} Nf4 {[%emt 0:01:47]} 45. Bf5 {[%emt 0:01:32]} Ne6 {[%emt 0:07:27]} 46. Ke3 {[%emt 0:01:09]} Nd4 {[%emt 0:00:14]} 47. Be4 {[%emt 0:00:11]} {Black should play} Nc6 $19 {[%emt 0:02:04]} 48. a3 {[%emt 0:01:17]} a5 {[%emt 0:00:45]} 49. b5 {[%emt 0:03:26]} (49. Bxc6 Kxc6) 49... Nd4 {[%emt 0:00:15]} 50. Bd3 {[%emt 0:00:27]} Ne6 {[%emt 0:00:19]} 51. Bc2 {[%emt 0:00:41]} Nc5 {[%emt 0:01:20]} 52. Bd1 {[%emt 0:01:26]} Ke7 {[%emt 0:00:09]} 53. Bc2 {[%emt 0:01:07]} Kf6 {[%emt 0:00:05]} 54. Kf3 {[%emt 0:00:08]} Kg5 {[%emt 0:00:04]} 55. Bb1 {[%emt 0:00:34]} h5 {[%emt 0:00:07]} 56. Bc2 {[%emt 0:00:15]} h4 {[%emt 0:00:11]} 57. Bd1 {[%emt 0:01:06]} Kf5 {[%emt 0:00:16]} 58. Be2 {[%emt 0:00:21]} e4+ {[%emt 0:00:24]} 59. Ke3 {[%emt 0:00:12]} h3 {[%emt 0:00:33]} 60. Bf1 {[%emt 0:00:08]} Kg4 {[%emt 0:01:54]} 61. Kf2 {[%emt 0:00:35]} e3+ {[%emt 0:01:12]} 62. Kxe3 {[%emt 0:00:43]} Kg3 {[%emt 0:00:28]} 63. Bxh3 {[%emt 0:00:08]} Kxh3 {[%emt 0:00:03]} 64. Kd4 {[%emt 0:00:15]} Kg4 {[%emt 0:00:44]} 65. Kd5 {[%emt 0:00:18]} Kf5 {[%emt 0:03:34]} 66. Kc6 {[%emt 0:00:28]} Na4 {[%emt 0:00:40]} 67. c5 {[%emt 0:00:31]} bxc5 {[%emt 0:01:41]} 68. b6 {[%emt 0:00:07]} Nxb6 {[%emt 0:00:35]} 69. Kxc5 {[%emt 0:00:11]} Na4+ {[%emt 0:00:44]} 70. Kb5 {[%emt 0:00:13]} Nb2 {[%emt 0:00:07]} 71. Kxa5 {[%emt 0:00:08]} Nc4+ {[%emt 0:00:05]} 72. Kb4 {[%emt 0:00:06]} Nxa3 1/2-1/2

[Event "56th Rubinstein Memorial D 2020"]
[Site "Polanica Zdroj"]
[Date "2020.08.16"]
[Round "2.9"]
[White "Podgorski, Maciej"]
[Black "Wolska, Marta"]
[Result "0-1"]
[ECO "B12"]
[WhiteElo "1810"]
[BlackElo "1551"]
[Annotator "NA"]
[PlyCount "53"]
[EventDate "2020.08.15"]
[EventType "swiss"]
[EventCountry "POL"]
[SourceTitle "playchess.com"]
[Source "ChessBase"]
[SourceQuality "1"]
[TimeControl "40/5400+30:1800+30"]

{[%evp 8,41,9,-16,7,-28,32767,32767,32767,32767,32767,-8,32767,-27,32767,-26,-15,-79,18,16,12,-94,25,0,32767,72,128,32767,105,32767,32767,213,300,321,361,374]} 1. e4 {[%emt 0:00:00]} c6 {[%emt 0:00:00]} 2. d4 {[%emt 0:00:00]} d5 {[%emt 0:00:21]} 3. e5 {[%emt 0:00:07]} Bf5 {[%emt 0:00:05]} 4. Nc3 {[%emt 0:00:14]} e6 {[%emt 0:00:37]} 5. g4 {[%emt 0:00:09]} Bg6 $1 {[%emt 0:00:18]} 6. Nge2 {[%emt 0:00:08]} c5 {[%emt 0:01:09]} 7. h4 {[%emt 0:00:15]} h5 {[%emt 0:00:36]} 8. Nf4 {[%emt 0:02:14]} Bh7 {[%emt 0:00:36]} 9. Nxh5 {[%emt 0:11:02]} Nc6 {[%emt 0:01:05] B12: Caro-Kann: Advance Variation.} 10. dxc5 {[%emt 0:10:54]} Bxc5 {[%emt 0:09:24]} 11. Bb5 {[%emt 0:03:29]} Qc7 {[%emt 0:00:42]} 12. Qe2 {[%emt 0:08:17]} ({Wrong is} 12. Nxg7+ $2 Kf8 $17) (12. Bxc6+ $11 Qxc6 13. O-O (13. Nxg7+ $2 Kf8 $19)) 12... O-O-O {[%emt 0:01:41]} (12... d4 $15 13. Qc4 (13. Nxg7+ Kf8 $19) 13... Qxe5+ 14. Ne2 Qd6) 13. Bxc6 $1 {[%emt 0:01:34]} ({Don't go for} 13. Nxg7 $2 Nd4 $19 {[%mdl 64] Double Attack}) 13... Qxc6 {[%emt 0:00:02] [#]} 14. Qb5 $146 {[%emt 0:00:49]} (14. f3 $11 {keeps the balance.}) ({Predecessor:} 14. Bg5 d4 15. O-O-O Ne7 16. Bxe7 Bxe7 17. Rh3 Kb8 18. Nb5 d3 {0-1 (18) Maas,O (2236)-Helbig,A (2086) DESC email 2002}) 14... Qxb5 {[%emt 0:05:49]} ({Reject} 14... Bxc2 $6 15. Bg5 $11) (14... Ne7 $17 15. Bg5 d4 16. Qxc6+ Nxc6) 15. Nxb5 {[%emt 0:00:06]} Be4 {[%emt 0:09:09]} 16. Rh3 {[%emt 0:03:00]} d4 {[%emt 0:03:53]} ({Better is} 16... a6 $14 17. Rc3 b6 18. Nd6+ Rxd6 19. exd6 Kd7) 17. Bg5 {[%emt 0:06:00]} Rd7 {[%emt 0:02:19]} 18. Nxg7 {[%emt 0:15:34]} Kb8 {[%emt 0:13:16]} 19. O-O-O {[%emt 0:04:12]} a6 {[%emt 0:03:09] [#]} (19... Bc6 $142) 20. Nd6 $1 {[%emt 0:08:22]} Bd5 {[%emt 0:02:28]} 21. Nge8 $18 {[%emt 0:06:19]} Bxa2 {[%emt 0:06:24]} 22. c3 {[%emt 0:03:47]} Bxd6 {[%emt 0:05:53]} 23. Nxd6 {[%emt 0:00:34]} dxc3 {[%emt 0:01:59]} 24. Rxc3 {[%emt 0:00:25]} Bd5 {[%emt 0:00:52]} 25. Rc8+ {[%emt 0:01:04]} Ka7 {[%emt 0:00:04]} 26. Rd3 {[%emt 0:03:31]} f6 {[%emt 0:01:46]} 27. exf6 {[%emt 0:04:10]} 0-1

[Event "56th Rubinstein Memorial D 2020"]
[Site "Polanica Zdroj"]
[Date "2020.08.16"]
[Round "2.10"]
[White "Bialik, Nikodem"]
[Black "Szczygiel, Jakub"]
[Result "0-1"]
[ECO "B27"]
[WhiteElo "1552"]
[BlackElo "1802"]
[Annotator "NA"]
[PlyCount "88"]
[EventDate "2020.08.15"]
[EventType "swiss"]
[EventCountry "POL"]
[SourceTitle "playchess.com"]
[Source "ChessBase"]
[SourceQuality "1"]
[TimeControl "40/5400+30:1800+30"]

{[%evp 8,88,39,25,32767,7,32767,32767,13,32767,7,-8,-3,-13,0,-12,0,0,2,-34,-30,32767,32767,32767,-37,32767,-30,-65,-82,-123,-40,-87,-114,-113,0,-23,0,0,0,0,0,-27,-30,-44,-33,-65,-65,32767,32767,32767,-188,32767,32767,32767,32767,-112,32767,-219,-303,-243,-166,-523,-599,-572,-889,-1277,-955,-673,-1209,-883,-12836,-4598,-5069,-4574,-29970,-5583,-29969,-4631,-29972,-4627,-29977,-29976,-12844]} 1. e4 {[%emt 0:07:38]} c5 {[%emt 0:00:00]} 2. Nf3 {[%emt 0:00:11]} g6 {[%emt 0:00:00]} 3. c3 {[%emt 0:00:27]} Bg7 {[%emt 0:00:10]} 4. d4 {[%emt 0:00:44]} cxd4 {[%emt 0:00:05]} 5. cxd4 {[%emt 0:00:05]} d5 {[%emt 0:00:13]} 6. exd5 {[%emt 0:01:34]} Nf6 {[%emt 0:00:44]} 7. Bc4 {[%emt 0:02:01] B27: Sicilian: 2 Nf3, unusual Black 2nd moves.} Nxd5 {[%emt 0:03:03]} 8. Qb3 {[%emt 0:02:27]} e6 {[%emt 0:00:21]} 9. Bxd5 {[%emt 0:00:56]} Qxd5 {[%emt 0:02:58]} 10. Qxd5 {[%emt 0:00:24]} exd5 {[%emt 0:00:07]} 11. Nc3 {[%emt 0:00:08]} Be6 {[%emt 0:00:10]} 12. Nb5 {[%emt 0:00:50] [#]} Kd7 $146 {[%emt 0:00:52]} ({Predecessor:} 12... Kd8 13. Bf4 Nc6 14. O-O a6 15. Nd6 Nxd4 16. Nxb7+ Kc8 17. Nd6+ Kd7 18. Nxd4 Bxd4 {1-0 (30) Nominerdene,D-Draskoviz,D Kemer 2007}) 13. Bf4 {[%emt 0:03:01]} Nc6 {[%emt 0:01:00]} 14. Be5 {[%emt 0:04:35]} Nxe5 {[%emt 0:01:47]} 15. Nxe5+ {[%emt 0:02:08]} Ke7 {[%emt 0:02:49]} 16. Rc1 {[%emt 0:01:00]} Rac8 {[%emt 0:00:15]} 17. O-O {[%emt 0:00:45]} a6 {[%emt 0:01:31]} 18. Nc3 {[%emt 0:00:53]} ({Better is} 18. Nc7 $15) 18... b5 {[%emt 0:03:06]} (18... Bxe5 $1 $17 19. dxe5 d4) 19. a3 {[%emt 0:00:58]} Bxe5 $1 {[%emt 0:05:01]} 20. dxe5 {[%emt 0:00:44]} Rc5 {[%emt 0:01:14]} (20... d4 $17 21. Ne4 Bd5) 21. f4 {[%emt 0:02:27]} Rhc8 {[%emt 0:09:24]} 22. Rcd1 {[%emt 0:01:23]} h5 {[%emt 0:08:13]} 23. Rd4 {[%emt 0:01:46]} Rc4 {[%emt 0:06:22]} 24. Nxd5+ {[%emt 0:13:29]} Bxd5 {[%emt 0:00:10]} 25. Rxd5 {[%emt 0:00:04]} Rc2 {[%emt 0:00:07]} 26. Rfd1 {[%emt 0:00:38]} Rxb2 {[%emt 0:00:40]} 27. Rd7+ {[%emt 0:01:18]} Ke8 {[%emt 0:01:57]} 28. R7d2 {[%emt 0:04:26]} Rxd2 {[%emt 0:01:22]} 29. Rxd2 {[%emt 0:00:05]} Rc3 {[%emt 0:00:21]} 30. Ra2 {[%emt 0:03:23]} Ke7 {[%emt 0:00:42]} 31. Kf2 {[%emt 0:02:24]} Ke6 {[%emt 0:00:33]} 32. a4 $2 {[%emt 0:02:47]} (32. g3 $1 $15) 32... b4 {[%emt 0:00:29]} 33. Rd2 {[%emt 0:00:28]} Kf5 {[%emt 0:05:39]} 34. g3 $2 {[%emt 0:01:12]} (34. Rd7 Kxf4 35. Rd4+ Kxe5 36. Rxb4) 34... Ke4 {[%emt 0:00:56]} 35. Re2+ {[%emt 0:02:27]} Kd3 {[%emt 0:04:04]} 36. e6 {[%emt 0:00:40]} fxe6 {[%emt 0:00:10]} 37. Rxe6 {[%emt 0:00:12]} Kc2 {[%emt 0:00:19]} 38. Rxg6 {[%emt 0:01:08]} b3 {[%emt 0:00:30]} 39. Rxa6 {[%emt 0:00:09]} b2 $19 {[%emt 0:00:11]} 40. Rb6 {[%emt 0:00:09]} Rb3 {[%emt 0:00:11]} 41. Rc6+ {[%emt 0:30:05]} Kd3 {[%emt 0:30:15]} 42. Rd6+ {[%emt 0:00:09]} Ke4 {[%emt 0:00:57]} 43. Re6+ {[%emt 0:01:10]} Kf5 {[%emt 0:00:22]} 44. Re5+ {[%emt 0:00:06]} Kf6 {[%emt 0:00:20]} 0-1